fUST/lending_fUST_20241115
["ID","MTS","AMOUNT","RATE_DAILY","PERIOD"]
[342252995,1731655846127,-819.88,0.00014246,2]
[342252996,1731655846137,-500.0,0.00014246,2]
[342252997,1731655846147,-500.0,0.00014246,2]
[342252998,1731655846158,-500.0,0.00014246,2]
[342252999,1731655846168,-500.0,0.00014246,2]
[342253000,1731655846178,-500.0,0.00014246,2]
[342253001,1731655846189,-500.0,0.00014246,2]
[342253002,1731655846199,-500.0,0.00014246,2]
[342253003,1731655846210,-500.0,0.00014246,2]
[342253004,1731655846221,-500.0,0.00014246,2]
[342253005,1731655846231,-500.0,0.00014246,2]
[342253006,1731655846242,-500.0,0.00014246,2]
[342253007,1731655846252,-2123.04,0.00014246,2]
[342253008,1731655846263,-1086.55,0.00014246,2]
[342253009,1731655846274,-500.0,0.00014246,2]
[342253010,1731655846284,-1184.49,0.00014246,2]
[342253011,1731655846294,-500.0,0.00014246,2]
[342253012,1731655846304,-500.0,0.00014246,2]
[342253013,1731655846314,-500.0,0.00014246,2]
[342253014,1731655846324,-500.0,0.00014246,2]
[342253015,1731655846335,-500.0,0.00014246,2]
[342253016,1731655846345,-500.0,0.00014246,2]
[342253017,1731655846355,-500.0,0.00014246,2]
[342253018,1731655846366,-1315.27,0.00014246,2]
[342253019,1731655846378,-942.95,0.00014246,2]
[342253020,1731655846388,-500.0,0.00014246,2]
[342253021,1731655846399,-500.0,0.00014246,2]
[342253022,1731655846409,-500.0,0.00014246,2]
[342253023,1731655846419,-500.0,0.00014246,2]
[342253024,1731655846430,-500.0,0.00014246,2]
[342253025,1731655846440,-556.51,0.00014246,2]
[342253026,1731655846450,-500.0,0.00014246,2]
[342253027,1731655846461,-2025.45,0.00014246,2]
[342253028,1731655846471,-500.0,0.00014246,2]
[342253029,1731655846481,-632.59715994,0.00014246,2]
[342253030,1731655846491,-500.0,0.00014246,2]
[342253031,1731655846502,-500.0,0.00014246,2]
[342253032,1731655846512,-500.0,0.00014246,2]
[342253033,1731655846522,-500.0,0.00014246,2]
[342253034,1731655846532,-500.0,0.00014246,2]
[342253035,1731655846543,-667.71,0.00014246,2]
[342253036,1731655846554,-500.0,0.00014246,2]
[342253037,1731655846564,-500.0,0.00014246,2]
[342253038,1731655846575,-503.4,0.00014246,2]
[342253039,1731655846585,-500.0,0.00014246,2]
[342253040,1731655846755,-500.0,0.00014246,2]
[342253041,1731655846766,-500.0,0.00014246,2]
[342253043,1731655846775,-6131.51,0.00014246,2]
[342253044,1731655846785,-500.0,0.00014246,2]
[342253046,1731655846795,-500.0,0.00014246,2]
[342253048,1731655846804,-500.0,0.00014246,2]
[342253049,1731655846813,-500.0,0.00014246,2]
[342253050,1731655846822,-500.0,0.00014246,2]
[342253051,1731655846835,-5945.9,0.00014246,2]
[342253052,1731655846844,-500.0,0.00014246,2]
[342253054,1731655846854,-500.0,0.00014246,2]
[342253056,1731655846863,-500.0,0.00014246,2]
[342253058,1731655846873,-500.0,0.00014246,2]
[342253060,1731655846883,-500.0,0.00014253,2]
[342253061,1731655846892,-1036.78327,0.00014384,2]
[342253062,1731655846901,-500.0,0.00014519,2]
[342253063,1731655846911,-500.0,0.00014519,2]
[342253065,1731655846921,-151.0,0.0001452,2]
[342253066,1731655846930,-151.0,0.0001452,2]
[342253067,1731655846939,-500.0,0.0001452,2]
[342253068,1731655846948,-151.0,0.0001452,2]
[342253069,1731655846957,-298.981892,0.0001452,2]
[342253070,1731655846966,-500.0,0.0001452,2]
[342253071,1731655846975,-584.24,0.0001452,2]
[342253072,1731655846984,-500.0,0.0001452,2]
[342253073,1731655846993,-723.15,0.0001452,2]
[342253074,1731655847003,-500.0,0.0001452,2]
[342253075,1731655847012,-500.0,0.0001452,2]
[342253076,1731655847022,-500.0,0.0001452,2]
[342253077,1731655847031,-500.0,0.0001452,2]
[342253078,1731655847041,-500.0,0.0001452,2]
[342253079,1731655847051,-500.0,0.0001452,2]
[342253080,1731655847061,-589.25,0.0001452,2]
[342253081,1731655847070,-500.0,0.0001452,2]
[342253082,1731655847080,-500.0,0.0001452,2]
[342253083,1731655847089,-783.7,0.0001452,2]
[342253084,1731655847098,-500.0,0.0001452,2]
[342253085,1731655847107,-500.0,0.0001452,2]
[342253086,1731655847116,-485.85243521,0.0001452,2]
[342253087,1731655847127,-500.0,0.0001452,2]
[342253088,1731655847137,-500.0,0.0001452,2]
[342253089,1731655847146,-500.0,0.0001452,2]
[342253090,1731655847155,-500.0,0.0001452,2]
[342253091,1731655847165,-500.0,0.0001452,2]
[342253092,1731655847174,-805.51,0.0001452,2]
[342253093,1731655847184,-500.0,0.0001452,2]
[342253094,1731655847194,-500.0,0.0001452,2]
[342253095,1731655847203,-500.0,0.0001452,2]
[342253096,1731655847212,-500.0,0.0001452,2]
[342253097,1731655847221,-500.0,0.0001452,2]
[342253098,1731655847230,-500.0,0.0001452,2]
[342253099,1731655847239,-595.82,0.0001452,2]
[342253100,1731655847248,-500.0,0.0001452,2]
[342253101,1731655847258,-500.0,0.0001452,2]
[342253102,1731655847267,-500.0,0.0001452,2]
[342253103,1731655847276,-500.0,0.0001452,2]
[342253104,1731655847285,-500.0,0.0001452,2]
[342253105,1731655847294,-500.0,0.0001452,2]
[342253106,1731655847303,-500.0,0.0001452,2]
[342253107,1731655847312,-310.69268685,0.0001452,2]
[342253108,1731655847320,-500.0,0.0001452,2]
[342253109,1731655847329,-500.0,0.0001452,2]
[342253110,1731655847338,-500.0,0.0001452,2]
[342253111,1731655847348,-500.0,0.0001452,2]
[342253112,1731655847357,-178.672796,0.0001452,2]
[342253113,1731655847366,-500.0,0.0001452,2]
[342253114,1731655847382,-500.0,0.0001452,2]
[342253115,1731655847392,-500.0,0.0001452,2]
[342253116,1731655847401,-500.0,0.0001452,2]
[342253117,1731655847410,-507.744663,0.0001452,2]
[342253118,1731655847419,-562.32,0.0001452,2]
[342253119,1731655847429,-500.0,0.0001452,2]
[342253120,1731655847438,-500.0,0.0001452,2]
[342253121,1731655847446,-500.0,0.0001452,2]
[342253122,1731655847455,-500.0,0.0001452,2]
[342253123,1731655847464,-500.0,0.0001452,2]
[342253124,1731655847473,-500.0,0.0001452,2]
[342253125,1731655847483,-601.83,0.0001452,2]
[342253126,1731655847492,-500.0,0.0001452,2]
[342253127,1731655847501,-500.0,0.0001452,2]
[342253128,1731655847510,-500.0,0.0001452,2]
[342253129,1731655847519,-500.0,0.0001452,2]
[342253130,1731655847528,-500.0,0.0001452,2]
[342253131,1731655847537,-500.0,0.0001452,2]
[342253132,1731655847546,-500.0,0.0001452,2]
[342253133,1731655847554,-500.0,0.0001452,2]
[342253134,1731655847563,-500.0,0.0001452,2]
[342253135,1731655847572,-500.0,0.0001452,2]
[342253136,1731655847581,-500.0,0.0001452,2]
[342253137,1731655847591,-500.0,0.0001452,2]
[342253138,1731655847599,-500.0,0.0001452,2]
[342253139,1731655847608,-819.88,0.0001452,2]
[342253140,1731655847617,-500.0,0.0001452,2]
[342253141,1731655847629,-500.0,0.0001452,2]
[342253142,1731655847638,-500.0,0.0001452,2]
[342253143,1731655847647,-500.0,0.0001452,2]
[342253144,1731655847656,-500.0,0.0001452,2]
[342253145,1731655847665,-500.0,0.0001452,2]
[342253146,1731655847674,-500.0,0.0001452,2]
[342253147,1731655847683,-500.0,0.0001452,2]
[342253148,1731655847692,-500.0,0.0001452,2]
[342253149,1731655847701,-500.0,0.0001452,2]
[342253150,1731655847710,-361.20556202,0.0001452,2]
[342253151,1731655847720,-2123.04,0.0001452,2]
[342253152,1731655847729,-1086.55,0.0001452,2]
[342253153,1731655847738,-500.0,0.0001452,2]
[342253154,1731655847748,-1184.49,0.0001452,2]
[342253155,1731655847757,-500.0,0.0001452,2]
[342253156,1731655847766,-500.0,0.0001452,2]
[342253157,1731655847775,-500.0,0.0001452,2]
[342253158,1731655847784,-500.0,0.0001452,2]
[342253159,1731655847793,-500.0,0.0001452,2]
[342253160,1731655847802,-500.0,0.0001452,2]
[342253161,1731655847811,-500.0,0.0001452,2]
[342253162,1731655847820,-1315.27,0.0001452,2]
[342253163,1731655847830,-942.95,0.0001452,2]
[342253164,1731655847840,-500.0,0.0001452,2]
[342253165,1731655847849,-500.0,0.0001452,2]
[342253166,1731655847858,-500.0,0.0001452,2]
[342253167,1731655847867,-500.0,0.0001452,2]
[342253168,1731655847879,-556.51,0.0001452,2]
[342253169,1731655847888,-500.0,0.0001452,2]
[342253170,1731655847897,-2025.45,0.0001452,2]
[342253171,1731655847907,-500.0,0.0001452,2]
[342253172,1731655847916,-500.0,0.0001452,2]
[342253173,1731655847925,-500.0,0.0001452,2]
[342253174,1731655847934,-500.0,0.0001452,2]
[342253175,1731655847943,-500.0,0.0001452,2]
[342253176,1731655847952,-500.0,0.0001452,2]
[342253177,1731655847961,-667.71,0.0001452,2]
[342253178,1731655847969,-500.0,0.0001452,2]
[342253179,1731655847978,-500.0,0.0001452,2]
[342253180,1731655847987,-503.4,0.0001452,2]
[342253181,1731655847997,-500.0,0.0001452,2]
[342253182,1731655848006,-500.0,0.0001452,2]
[342253183,1731655848015,-500.0,0.0001452,2]
[342253184,1731655848024,-6131.51,0.0001452,2]
[342253185,1731655848033,-500.0,0.0001452,2]
[342253186,1731655848042,-500.0,0.0001452,2]
[342253187,1731655848051,-500.0,0.0001452,2]
[342253188,1731655848060,-500.0,0.0001452,2]
[342253189,1731655848069,-500.0,0.0001452,2]
[342253190,1731655848078,-5945.9,0.0001452,2]
[342253191,1731655848087,-500.0,0.0001452,2]
[342253192,1731655848096,-500.0,0.0001452,2]
[342253193,1731655848106,-500.0,0.0001452,2]
[342253194,1731655848115,-1000.0,0.00014521,2]
[342253195,1731655848125,-500.0,0.00014793,2]
[342253196,1731655848134,-280.30881616,0.00014793,2]
[342253197,1731655848143,-151.0,0.00014794,2]
[342253198,1731655848153,-639.91352129,0.00014794,2]
[342253199,1731655848162,-151.0,0.00014794,2]
[342253200,1731655848171,-197.04,0.00014794,2]
[342253201,1731655848180,-500.0,0.00014794,2]
[342253202,1731655848189,-723.15,0.00014794,2]
[342253203,1731655848198,-500.0,0.00014794,2]
[342253204,1731655848207,-500.0,0.00014794,2]
[342253205,1731655848217,-500.0,0.00014794,2]
[342253206,1731655848225,-500.0,0.00014794,2]
[342253207,1731655848235,-500.0,0.00014794,2]
[342253208,1731655848244,-500.0,0.00014794,2]
[342253209,1731655848253,-783.7,0.00014794,2]
[342253210,1731655848262,-500.0,0.00014794,2]
[342253211,1731655848271,-500.0,0.00014794,2]
[342253212,1731655848280,-500.0,0.00014794,2]
[342253213,1731655848289,-500.0,0.00014794,2]
[342253214,1731655848298,-500.0,0.00014794,2]
[342253215,1731655848307,-251.02,0.00014794,2]
[342253216,1731655848316,-805.51,0.00014794,2]
[342253217,1731655848325,-500.0,0.00014794,2]
[342253218,1731655848334,-500.0,0.00014794,2]
[342253219,1731655848343,-389.72092656,0.00014794,2]
[342253220,1731655848352,-627.53,0.00014794,2]
[342253221,1731655848361,-595.82,0.00014794,2]
[342253222,1731655848371,-191.80306513,0.00014794,2]
[342253223,1731655848381,-500.0,0.00014794,2]
[342253224,1731655848390,-500.0,0.00014794,2]
[342253225,1731655848399,-500.0,0.00014794,2]
[342253226,1731655848408,-500.0,0.00014794,2]
[342253227,1731655848418,-500.0,0.00014794,2]
[342253228,1731655848427,-85.11052177,0.00014794,2]
[342253229,1731655848762,-500.0,0.00014246,2]
[342253230,1731655848772,-388.21218,0.0001452,2]
[342253247,1731656387268,100000.0,0.00027,60]
[342253248,1731656402416,50000.0,0.00025,120]
[342253270,1731657032316,-755.73158204,0.00013598,2]
[342253272,1731657032326,-300.0,0.00013697,2]
[342253273,1731657032336,-300.0,0.00013697,2]
[342253275,1731657032345,-500.0,0.00013698,2]
[342253277,1731657032355,-128.93183176,0.00013698,2]
[342253280,1731657032366,-371.06816824,0.00013698,2]
[342253281,1731657032376,-500.0,0.00013698,2]
[342253284,1731657032385,-251.86893276,0.00013698,2]
[342253296,1731657040279,-571.09892399,0.00013698,2]
[342253297,1731657040289,-248.13106724,0.00013698,2]
[342253298,1731657040299,-500.0,0.00013698,2]
[342253299,1731657040308,-500.0,0.00013698,2]
[342253300,1731657040319,-157.50386717,0.00013698,2]
[342253311,1731657043546,-233.44179898,0.00013698,2]
[342253312,1731657043667,-109.05433385,0.00013698,2]
[342253313,1731657043677,-500.0,0.00013698,2]
[342253314,1731657043687,-500.0,0.00013698,2]
[342253315,1731657043697,-500.0,0.00013698,2]
[342253316,1731657043707,-500.0,0.00013698,2]
[342253317,1731657043717,-500.0,0.00013698,2]
[342253318,1731657043726,-474.91056097,0.00013698,2]
[342253319,1731657043736,-500.0,0.00013698,2]
[342253320,1731657043746,-500.0,0.00013698,2]
[342253321,1731657043756,-500.0,0.00013698,2]
[342253322,1731657043766,-506.52126627,0.00013698,2]
[342253323,1731657043775,-500.0,0.00013698,2]
[342253324,1731657043785,-505.1482764,0.00013698,2]
[342253325,1731657043795,-216.95041246,0.00013698,2]
[342253326,1731657043807,-334.91283736,0.00013698,2]
[342253327,1731657043819,-259.17643076,0.00013698,2]
[342253328,1731657043828,-500.0,0.00013698,2]
[342253329,1731657043838,-501.67769389,0.00013698,2]
[342253330,1731657043847,-500.0,0.00013698,2]
[342253331,1731657043857,-500.0,0.00013698,2]
[342253332,1731657043867,-447.88963301,0.00013698,2]
[342253333,1731657043878,-128.86036699,0.00013698,2]
[342253334,1731657043888,-500.0,0.00013698,2]
[342253335,1731657043897,-500.0,0.00013698,2]
[342253336,1731657043906,-500.0,0.00013698,2]
[342253337,1731657043915,-500.0,0.00013698,2]
[342253338,1731657043925,-806.34,0.00013698,2]
[342253339,1731657043934,-549.04469954,0.00013698,2]
[342253340,1731657043944,-500.0,0.00013698,2]
[342253341,1731657043954,-374.19085882,0.00013698,2]
[342253351,1731657419170,326.40430473,0.00011,3]
[342253371,1731657698083,2548.51269095,0.00027,60]
[342253375,1731657777769,2021.0,0.00027,120]
[342253379,1731657952186,-212.0299786,0.00012542,2]
[342253380,1731657952207,-6851.83581194,0.00013451,2]
[342253381,1731657952228,-300.0,0.00013497,2]
[342253382,1731657952249,-300.0,0.00013497,2]
[342253383,1731657952269,-1082.41140261,0.00013498,2]
[342253384,1731657952289,-661.26513432,0.00013498,2]
[342253385,1731657952309,-1000.0,0.00013498,2]
[342253386,1731657952328,-1082.41140258,0.00013499,2]
[342253387,1731657952347,-1082.41140258,0.00013499,2]
[342253388,1731657952369,-1082.41140258,0.000135,2]
[342253389,1731657952388,-1082.41140258,0.000135,2]
[342253390,1731657952407,-572.84551114,0.00013598,2]
[342253391,1731657952427,-1575.03494287,0.00013598,2]
[342253392,1731657952447,-28130.82988441,0.00013598,2]
[342253393,1731657959012,1316.0,0.00025,120]
[342253395,1731658033103,-1000.0,0.00013498,2]
[342253396,1731658033124,-274.50171508,0.00013498,2]
[342253397,1731658033144,-300.0,0.00013597,2]
[342253398,1731658033167,-300.0,0.00013597,2]
[342253399,1731658033187,-1417.53144861,0.00013598,2]
[342253400,1731658033209,-20495.46760202,0.00013598,2]
[342253452,1731658232520,-300.0,0.00013597,2]
[342253453,1731658232530,-201373.70251357,0.00013598,2]
[342253454,1731658232540,-138329.89909951,0.00013598,2]
[342253461,1731658238500,-35172.01715006,0.00013598,2]
[342253462,1731658238552,-9180.67574841,0.00013598,2]
[342253463,1731658238608,-47317.40800202,0.00013598,2]
[342253464,1731658238618,-400.0,0.000136,4]
[342253465,1731658238628,-330.0,0.000136,3]
[342253466,1731658238638,-500.0,0.00013673,2]
[342253467,1731658238647,-526.63246595,0.00013673,2]
[342253468,1731658238657,-500.0,0.00013673,2]
[342253469,1731658238667,-500.0,0.00013673,2]
[342253470,1731658238676,-500.0,0.00013673,2]
[342253471,1731658238685,-500.0,0.00013673,2]
[342253472,1731658238694,-505.39217506,0.00013673,2]
[342253473,1731658238704,-500.0,0.00013673,2]
[342253474,1731658238713,-628.66024224,0.00013673,2]
[342253475,1731658238723,-500.0,0.00013698,2]
[342253476,1731658238732,-272.76827097,0.00013698,2]
[342253477,1731658238741,-500.0,0.00013698,2]
[342253478,1731658238750,-500.0,0.00013698,2]
[342253479,1731658238759,-625.44968447,0.00013698,2]
[342253480,1731658238768,-152.60671119,0.00013698,2]
[342253481,1731658238778,-170.8263531,0.00013698,2]
[342253482,1731658238787,-368.45699891,0.00013698,2]
[342253483,1731658238796,-500.0,0.00013698,2]
[342253484,1731658238805,-500.0,0.00013698,2]
[342253485,1731658238817,-500.0,0.00013698,2]
[342253486,1731658238826,-500.0,0.00013698,2]
[342253487,1731658238835,-239.53592972,0.00013698,2]
[342253488,1731658238844,-500.0,0.00013698,2]
[342253489,1731658238853,-552.50748746,0.00013698,2]
[342253490,1731658238862,-500.0,0.00013698,2]
[342253491,1731658238871,-619.16945727,0.00013698,2]
[342253492,1731658238880,-500.37553191,0.00013698,2]
[342253493,1731658238889,-355.34636228,0.00013698,2]
[342253494,1731658238898,-502.57278209,0.00013698,2]
[342253495,1731658238907,-500.0,0.00013698,2]
[342253496,1731658238917,-511.57478454,0.00013698,2]
[342253497,1731658238925,-505.98709462,0.00013698,2]
[342253498,1731658238934,-500.0,0.00013698,2]
[342253499,1731658238943,-500.0,0.00013698,2]
[342253500,1731658238952,-502.92471835,0.00013698,2]
[342253501,1731658238961,-507.53078266,0.00013698,2]
[342253502,1731658238970,-500.0,0.00013698,2]
[342253503,1731658238979,-500.0,0.00013698,2]
[342253504,1731658238989,-500.0,0.00013698,2]
[342253505,1731658238998,-237.98381948,0.00013698,2]
[342253506,1731658239007,-507.63425325,0.00013698,2]
[342253507,1731658239017,-566.90148136,0.00013698,2]
[342253508,1731658239026,-503.09844197,0.00013698,2]
[342253509,1731658239035,-503.67207861,0.00013698,2]
[342253510,1731658239044,-500.0,0.00013698,2]
[342253511,1731658239053,-193.29723242,0.00013698,2]
[342253512,1731658239065,-224.16150991,0.00013698,2]
[342253513,1731658239074,-512.51606304,0.00013698,2]
[342253514,1731658239083,-506.21576309,0.00013698,2]
[342253515,1731658239092,-500.0,0.00013698,2]
[342253516,1731658239102,-503.93876817,0.00013698,2]
[342253517,1731658239111,-500.87823963,0.00013698,2]
[342253518,1731658239121,-502.52744041,0.00013698,2]
[342253519,1731658239130,-507.56529711,0.00013698,2]
[342253520,1731658239139,-500.81239791,0.00013698,2]
[342253521,1731658239149,-500.0,0.00013698,2]
[342253522,1731658239158,-500.0,0.00013698,2]
[342253523,1731658239168,-500.0,0.00013698,2]
[342253524,1731658239177,-318.10301232,0.00013698,2]
[342253525,1731658239186,-539.75380396,0.00013698,2]
[342253526,1731658239196,-500.0,0.00013698,2]
[342253527,1731658239205,-503.78813481,0.00013698,2]
[342253528,1731658239214,-500.0,0.00013698,2]
[342253529,1731658239223,-551.1605483,0.00013698,2]
[342253530,1731658239233,-366.56070747,0.00013698,2]
[342253531,1731658239243,-500.0,0.00013698,2]
[342253532,1731658239252,-500.0,0.00013698,2]
[342253533,1731658239261,-500.0,0.00013698,2]
[342253534,1731658239271,-500.0,0.00013698,2]
[342253535,1731658239280,-500.0,0.00013698,2]
[342253536,1731658239290,-546.20792493,0.00013698,2]
[342253537,1731658239299,-569.23946109,0.00013698,2]
[342253538,1731658239309,-513.74291922,0.00013698,2]
[342253539,1731658239321,-500.0,0.00013698,2]
[342253540,1731658239330,-500.0,0.00013698,2]
[342253541,1731658239340,-500.0,0.00013698,2]
[342253542,1731658239350,-517.02041436,0.00013698,2]
[342253543,1731658239359,-500.0,0.00013698,2]
[342253544,1731658239368,-502.48923143,0.00013698,2]
[342253545,1731658239378,-500.0,0.00013698,2]
[342253546,1731658239387,-500.0,0.00013698,2]
[342253547,1731658239396,-527.71977444,0.00013698,2]
[342253548,1731658239407,-638.34322309,0.00013698,2]
[342253549,1731658239416,-183.18851667,0.00013698,2]
[342253550,1731658239426,-500.0,0.00013698,2]
[342253551,1731658239435,-500.0,0.00013698,2]
[342253552,1731658239444,-500.0,0.00013698,2]
[342253553,1731658239454,-281.63478234,0.00013698,2]
[342253554,1731658239464,-500.0,0.00013698,2]
[342253555,1731658239473,-491.71981233,0.00013698,2]
[342253556,1731658239483,-500.0,0.00013698,2]
[342253557,1731658239492,-504.87728605,0.00013698,2]
[342253558,1731658239501,-500.0,0.00013698,2]
[342253559,1731658239510,-502.65022671,0.00013698,2]
[342253560,1731658239520,-501.94177332,0.00013698,2]
[342253561,1731658239529,-256.47129131,0.00013698,2]
[342253562,1731658239539,-201.86942554,0.00013698,2]
[342253563,1731658239548,-500.0,0.00013698,2]
[342253564,1731658239559,-265.83370039,0.00013698,2]
[342253565,1731658239580,-500.0,0.00013698,2]
[342253566,1731658239589,-234.39721058,0.00013698,2]
[342253567,1731658239599,-531.20877523,0.00013698,2]
[342253568,1731658239608,-500.0,0.00013698,2]
[342253569,1731658239619,-505.84715199,0.00013698,2]
[342253570,1731658239628,-504.89704124,0.00013698,2]
[342253571,1731658239638,-506.51434324,0.00013698,2]
[342253572,1731658239648,-500.0,0.00013698,2]
[342253573,1731658239658,-500.0,0.00013698,2]
[342253574,1731658239668,-504.78794065,0.00013698,2]
[342253575,1731658239678,-500.0,0.00013698,2]
[342253576,1731658239689,-500.0,0.00013698,2]
[342253577,1731658239698,-503.5381792,0.00013698,2]
[342253578,1731658239708,-501.44820045,0.00013698,2]
[342253579,1731658239718,-504.74226335,0.00013698,2]
[342253580,1731658239727,-500.4431344,0.00013698,2]
[342253581,1731658239737,-500.0,0.00013698,2]
[342253582,1731658239747,-502.3506618,0.00013698,2]
[342253583,1731658239757,-500.0,0.00013698,2]
[342253584,1731658239766,-504.43149556,0.00013698,2]
[342253585,1731658239776,-502.98076554,0.00013698,2]
[342253586,1731658239786,-500.0,0.00013698,2]
[342253587,1731658239795,-609.81508661,0.00013698,2]
[342253588,1731658239805,-500.0,0.00013698,2]
[342253589,1731658239817,-500.0,0.00013698,2]
[342253590,1731658239826,-500.0,0.00013698,2]
[342253591,1731658239835,-500.0,0.00013698,2]
[342253592,1731658239845,-502.85801062,0.00013698,2]
[342253593,1731658239855,-503.04223817,0.00013698,2]
[342253594,1731658239864,-502.32942552,0.00013698,2]
[342253595,1731658239874,-500.0,0.00013698,2]
[342253597,1731658239883,-500.0,0.00013698,2]
[342253598,1731658239892,-500.0,0.00013698,2]
[342253599,1731658239902,-500.0,0.00013698,2]
[342253600,1731658239912,-500.0,0.00013698,2]
[342253601,1731658239921,-500.0,0.00013698,2]
[342253603,1731658239930,-500.0,0.00013698,2]
[342253604,1731658239939,-500.0,0.00013698,2]
[342253605,1731658239948,-541.80817312,0.00013698,2]
[342253606,1731658239958,-298.22795768,0.00013698,2]
[342253607,1731658239967,-500.0,0.00013698,2]
[342253609,1731658239976,-508.77129224,0.00013698,2]
[342253610,1731658239986,-502.87088634,0.00013698,2]
[342253611,1731658239995,-502.65249403,0.00013698,2]
[342253612,1731658240005,-500.0,0.00013698,2]
[342253614,1731658240015,-500.0,0.00013698,2]
[342253615,1731658240024,-501.3358483,0.00013698,2]
[342253616,1731658240033,-503.85079326,0.00013698,2]
[342253617,1731658240042,-504.67947968,0.00013698,2]
[342253618,1731658240052,-500.0,0.00013698,2]
[342253619,1731658240063,-500.0,0.00013698,2]
[342253620,1731658240073,-500.0,0.00013698,2]
[342253621,1731658240083,-838.05,0.00013698,2]
[342253623,1731658240092,-500.0,0.00013698,2]
[342253624,1731658240101,-500.0,0.00013698,2]
[342253626,1731658240110,-504.55,0.00013698,2]
[342253627,1731658240119,-500.0,0.00013698,2]
[342253628,1731658240128,-503.00209994,0.00013698,2]
[342253629,1731658240137,-504.33751304,0.00013698,2]
[342253630,1731658240146,-500.0,0.00013698,2]
[342253631,1731658240155,-500.0,0.00013698,2]
[342253632,1731658240163,-503.03911293,0.00013698,2]
[342253633,1731658240172,-500.0,0.00013698,2]
[342253634,1731658240181,-453.86201782,0.00013698,2]
[342253635,1731658240190,-500.0,0.00013698,2]
[342253636,1731658240199,-258.97290928,0.00013698,2]
[342253637,1731658240208,-500.0,0.00013698,2]
[342253638,1731658240217,-511.67514007,0.00013698,2]
[342253639,1731658240226,-500.0,0.00013698,2]
[342253640,1731658240234,-500.0,0.00013698,2]
[342253641,1731658240243,-502.25407752,0.00013698,2]
[342253642,1731658240252,-509.05646884,0.00013698,2]
[342253643,1731658240261,-500.0,0.00013698,2]
[342253644,1731658240270,-504.53597188,0.00013698,2]
[342253645,1731658240279,-497.2828268,0.00013698,2]
[342253646,1731658240288,-500.0,0.00013698,2]
[342253647,1731658240298,-515.12,0.00013698,2]
[342253648,1731658240307,-500.0,0.00013698,2]
[342253649,1731658240319,-501.64915221,0.00013698,2]
[342253650,1731658240328,-504.24440199,0.00013698,2]
[342253651,1731658240337,-503.57902328,0.00013698,2]
[342253652,1731658240347,-894.14,0.00013698,2]
[342253653,1731658240357,-502.48342927,0.00013698,2]
[342253654,1731658240366,-517.86862998,0.00013698,2]
[342253655,1731658240375,-505.49184856,0.00013698,2]
[342253656,1731658240384,-500.00410625,0.00013698,2]
[342253657,1731658240392,-506.13057208,0.00013698,2]
[342253658,1731658240401,-505.96746126,0.00013698,2]
[342253659,1731658240410,-504.50102982,0.00013698,2]
[342253660,1731658240421,-500.0,0.00013698,2]
[342253661,1731658240431,-504.71592837,0.00013698,2]
[342253662,1731658240440,-526.66577935,0.00013698,2]
[342253663,1731658240449,-500.0,0.00013698,2]
[342253664,1731658240458,-500.0,0.00013698,2]
[342253665,1731658240466,-500.0,0.00013698,2]